[Event "Titled Tuesday Blitz July 27 2021"]
[White "Rangel, Daniel"]
[Black "Shukhman, Anna"]
[WhiteFideId "2124475"]
[BlackFideId "54180058"]
[WhiteElo "2187"]
[BlackElo "1628"]
[Result "0-1"]
[Round "11"]
[TimeControl "180+1"]
[Date "2021.07.27"]
[WhiteClock "0:01:29"]
[BlackClock "0:02:29"]

1. d4 {[%clk 0:03:00]}  f5 {[%clk 0:02:59]} 2. g3 {[%clk 0:02:57]}  Nf6 {[%clk 0:02:59]} 3. Bg2 {[%clk 0:02:57]}  g6 {[%clk 0:02:59]} 4. Nf3 {[%clk 0:02:55]}  Bg7 {[%clk 0:03:00]} 5. O-O {[%clk 0:02:54]}  O-O {[%clk 0:03:00]} 6. c4 {[%clk 0:02:53]}  d6 {[%clk 0:03:00]} 7. b3 {[%clk 0:02:52]}  Qe8 {[%clk 0:02:48]} 8. Bb2 {[%clk 0:02:40]}  e5 {[%clk 0:02:47]} 9. dxe5 {[%clk 0:02:39]}  Ng4 {[%clk 0:02:47]} 10. Qd5+ {[%clk 0:02:04]}  Kh8 {[%clk 0:02:46]} 11. Nc3 {[%clk 0:01:57]}  Nxe5 {[%clk 0:02:42]} 12. Rae1 {[%clk 0:01:47]}  Nbc6 {[%clk 0:02:39]} 13. Qd2 {[%clk 0:01:40]}  Be6 {[%clk 0:02:36]} 14. e4 {[%clk 0:01:33]}  fxe4 {[%clk 0:02:35]} 15. Nxe4 {[%clk 0:01:28]}  Rxf3 {[%clk 0:02:29]} 16. Bxf3 {[%clk 0:01:29]}  Nxf3+ {[%clk 0:02:29]} 0-1


[Site "https://www.chess.com"]

[Event "Titled Tuesday Blitz July 27 2021"]
[White "Reprintsev, Alexander"]
[Black "Hoffmann, Asa"]
[WhiteFideId "14100541"]
[BlackFideId "2001470"]
[WhiteElo "2126"]
[BlackElo "2117"]
[Result "0-1"]
[Round "11"]
[TimeControl "180+1"]
[Date "2021.07.27"]
[WhiteClock "0:00:02"]
[BlackClock "0:01:25"]

1. e4 {[%clk 0:03:00]}  d6 {[%clk 0:02:49]} 2. d4 {[%clk 0:03:00]}  Nf6 {[%clk 0:02:44]} 3. Nc3 {[%clk 0:03:01]}  c6 {[%clk 0:02:40]} 4. f4 {[%clk 0:02:53]}  Qa5 {[%clk 0:02:37]} 5. Qd2 {[%clk 0:02:34]}  b5 {[%clk 0:02:34]} 6. a3 {[%clk 0:02:33]}  b4 {[%clk 0:02:33]} 7. Nd1 {[%clk 0:02:13]}  Nxe4 {[%clk 0:02:32]} 8. Qxb4 {[%clk 0:01:58]}  Qc7 {[%clk 0:02:16]} 9. Bd3 {[%clk 0:01:49]}  a5 {[%clk 0:02:13]} 10. Qa4 {[%clk 0:01:32]}  Nf6 {[%clk 0:02:11]} 11. Ne3 {[%clk 0:01:15]}  g6 {[%clk 0:02:08]} 12. d5 {[%clk 0:01:01]}  Bg7 {[%clk 0:02:06]} 13. Ne2 {[%clk 0:00:51]}  Bd7 {[%clk 0:01:47]} 14. Qb3 {[%clk 0:00:47]}  O-O {[%clk 0:01:44]} 15. O-O {[%clk 0:00:03]}  Na6 {[%clk 0:01:43]} 16. Bd2 {[%clk 0:00:03]}  Nc5 {[%clk 0:01:41]} 17. Qa2 {[%clk 0:00:04]}  Rfb8 {[%clk 0:01:37]} 18. Bc3 {[%clk 0:00:04]}  Qb7 {[%clk 0:01:32]} 19. Rab1 {[%clk 0:00:03]}  cxd5 {[%clk 0:01:30]} 20. Ng3 {[%clk 0:00:02]}  Be6 {[%clk 0:01:25]} 0-1


[Site "https://www.chess.com"]

[Event "Titled Tuesday Blitz July 27 2021"]
[White "Sapunov, Evgeny"]
[Black "Spata, German"]
[WhiteFideId "4126661"]
[BlackFideId "113026"]
[WhiteElo "2470"]
[BlackElo "2238"]
[Result "1-0"]
[Round "11"]
[TimeControl "180+1"]
[Date "2021.07.27"]
[WhiteClock "0:01:00"]
[BlackClock "0:00:53"]

1. c4 {[%clk 0:03:00]}  g6 {[%clk 0:02:58]} 2. Nf3 {[%clk 0:03:00]}  Bg7 {[%clk 0:02:58]} 3. d4 {[%clk 0:03:01]}  d6 {[%clk 0:02:58]} 4. Nc3 {[%clk 0:03:00]}  Nf6 {[%clk 0:02:55]} 5. e4 {[%clk 0:03:00]}  O-O {[%clk 0:02:54]} 6. Be2 {[%clk 0:02:58]}  Bg4 {[%clk 0:02:54]} 7. Be3 {[%clk 0:02:54]}  Nfd7 {[%clk 0:02:53]} 8. Rc1 {[%clk 0:02:51]}  Nc6 {[%clk 0:02:50]} 9. d5 {[%clk 0:02:48]}  Bxf3 {[%clk 0:02:30]} 10. Bxf3 {[%clk 0:02:47]}  Nce5 {[%clk 0:02:30]} 11. Be2 {[%clk 0:02:47]}  f5 {[%clk 0:02:23]} 12. f4 {[%clk 0:02:46]}  Nf7 {[%clk 0:02:14]} 13. exf5 {[%clk 0:02:46]}  gxf5 {[%clk 0:02:14]} 14. O-O {[%clk 0:02:47]}  Nf6 {[%clk 0:02:08]} 15. h3 {[%clk 0:02:46]}  c6 {[%clk 0:02:06]} 16. Qd3 {[%clk 0:02:39]}  Qd7 {[%clk 0:01:58]} 17. Rcd1 {[%clk 0:02:26]}  e6 {[%clk 0:01:55]} 18. dxe6 {[%clk 0:02:17]}  Qxe6 {[%clk 0:01:55]} 19. Rfe1 {[%clk 0:02:16]}  Ne4 {[%clk 0:01:49]} 20. Nxe4 {[%clk 0:02:10]}  fxe4 {[%clk 0:01:50]} 21. Qc2 {[%clk 0:02:10]}  Nh6 {[%clk 0:01:34]} 22. g4 {[%clk 0:02:10]}  Kh8 {[%clk 0:01:30]} 23. Rf1 {[%clk 0:02:05]}  d5 {[%clk 0:01:30]} 24. Qb3 {[%clk 0:02:02]}  Rad8 {[%clk 0:01:25]} 25. cxd5 {[%clk 0:02:02]}  cxd5 {[%clk 0:01:26]} 26. Rd2 {[%clk 0:02:02]}  Qe7 {[%clk 0:01:16]} 27. Rxd5 {[%clk 0:01:55]}  Qh4 {[%clk 0:01:16]} 28. Bf2 {[%clk 0:01:47]}  Qe7 {[%clk 0:01:13]} 29. Rxd8 {[%clk 0:01:45]}  Rxd8 {[%clk 0:01:13]} 30. Rd1 {[%clk 0:01:41]}  Rf8 {[%clk 0:01:10]} 31. Bg3 {[%clk 0:01:28]}  Qc5+ {[%clk 0:01:00]} 32. Kg2 {[%clk 0:01:26]}  e3 {[%clk 0:00:59]} 33. Bf3 {[%clk 0:01:04]}  Re8 {[%clk 0:00:56]} 34. Re1 {[%clk 0:01:03]}  Nf7 {[%clk 0:00:53]} 35. Qxf7 {[%clk 0:01:00]} 1-0


[Site "https://www.chess.com"]

[Event "Titled Tuesday Blitz July 27 2021"]
[White "Sarana, Alexey"]
[Black "Pridorozhni, Aleksei"]
[WhiteFideId "24133795"]
[BlackFideId "4127870"]
[WhiteElo "2646"]
[BlackElo "2565"]
[Result "1-0"]
[Round "11"]
[TimeControl "180+1"]
[Date "2021.07.27"]
[WhiteClock "0:00:12"]
[BlackClock "0:00:06"]

1. e4 {[%clk 0:03:00]}  c5 {[%clk 0:02:58]} 2. Nf3 {[%clk 0:03:01]}  e6 {[%clk 0:02:58]} 3. c3 {[%clk 0:03:00]}  Nc6 {[%clk 0:02:58]} 4. d4 {[%clk 0:02:57]}  d5 {[%clk 0:02:58]} 5. exd5 {[%clk 0:02:56]}  exd5 {[%clk 0:02:59]} 6. Bb5 {[%clk 0:02:55]}  Bd6 {[%clk 0:02:59]} 7. dxc5 {[%clk 0:02:46]}  Bxc5 {[%clk 0:03:00]} 8. O-O {[%clk 0:02:46]}  Ne7 {[%clk 0:03:00]} 9. Nbd2 {[%clk 0:02:46]}  O-O {[%clk 0:03:00]} 10. Nb3 {[%clk 0:02:46]}  Bb6 {[%clk 0:03:01]} 11. Re1 {[%clk 0:02:45]}  Nf5 {[%clk 0:02:57]} 12. Bf4 {[%clk 0:02:37]}  Be6 {[%clk 0:02:54]} 13. Bd3 {[%clk 0:02:36]}  h6 {[%clk 0:02:46]} 14. Qd2 {[%clk 0:02:35]}  Qf6 {[%clk 0:02:44]} 15. Ne5 {[%clk 0:02:26]}  Rfe8 {[%clk 0:02:31]} 16. Re2 {[%clk 0:02:22]}  Nh4 {[%clk 0:02:18]} 17. Rae1 {[%clk 0:02:19]}  Red8 {[%clk 0:01:51]} 18. a4 {[%clk 0:02:05]}  a5 {[%clk 0:01:42]} 19. Bc2 {[%clk 0:02:03]}  Bf5 {[%clk 0:01:39]} 20. Bg3 {[%clk 0:01:38]}  Bxc2 {[%clk 0:01:39]} 21. Qxc2 {[%clk 0:01:38]}  Nf5 {[%clk 0:01:38]} 22. Qd3 {[%clk 0:01:29]}  Nxg3 {[%clk 0:01:18]} 23. Qxg3 {[%clk 0:01:29]}  Rac8 {[%clk 0:01:17]} 24. Nd2 {[%clk 0:01:15]}  Bc7 {[%clk 0:01:03]} 25. Ng4 {[%clk 0:01:12]}  Qg5 {[%clk 0:00:54]} 26. Qh3 {[%clk 0:01:09]}  Qf4 {[%clk 0:00:47]} 27. Nf3 {[%clk 0:01:00]}  Bd6 {[%clk 0:00:41]} 28. b3 {[%clk 0:00:45]}  Bf8 {[%clk 0:00:32]} 29. Nfe5 {[%clk 0:00:37]}  Nxe5 {[%clk 0:00:32]} 30. Nxe5 {[%clk 0:00:38]}  d4 {[%clk 0:00:28]} 31. Nd3 {[%clk 0:00:38]}  Qf6 {[%clk 0:00:25]} 32. c4 {[%clk 0:00:38]}  Bb4 {[%clk 0:00:21]} 33. Rd1 {[%clk 0:00:35]}  Bc3 {[%clk 0:00:20]} 34. Qf3 {[%clk 0:00:28]}  Qxf3 {[%clk 0:00:17]} 35. gxf3 {[%clk 0:00:29]}  Kf8 {[%clk 0:00:18]} 36. Re5 {[%clk 0:00:26]}  Rd6 {[%clk 0:00:17]} 37. Rb5 {[%clk 0:00:25]}  b6 {[%clk 0:00:18]} 38. f4 {[%clk 0:00:23]}  Re8 {[%clk 0:00:17]} 39. Kg2 {[%clk 0:00:22]}  Re2 {[%clk 0:00:16]} 40. Kf3 {[%clk 0:00:23]}  Ra2 {[%clk 0:00:16]} 41. h4 {[%clk 0:00:20]}  g6 {[%clk 0:00:15]} 42. h5 {[%clk 0:00:20]}  gxh5 {[%clk 0:00:15]} 43. Rxh5 {[%clk 0:00:20]}  Re6 {[%clk 0:00:15]} 44. Rb5 {[%clk 0:00:20]}  Rf6 {[%clk 0:00:14]} 45. Rd5 {[%clk 0:00:16]}  Ke7 {[%clk 0:00:13]} 46. Re5+ {[%clk 0:00:14]}  Kf8 {[%clk 0:00:12]} 47. Rb5 {[%clk 0:00:14]}  Ke7 {[%clk 0:00:12]} 48. f5 {[%clk 0:00:15]}  Rd6 {[%clk 0:00:10]} 49. Kf4 {[%clk 0:00:14]}  Kf6 {[%clk 0:00:08]} 50. Rh1 {[%clk 0:00:14]}  Bd2+ {[%clk 0:00:08]} 51. Ke4 {[%clk 0:00:13]}  Ke7 {[%clk 0:00:08]} 52. Re5+ {[%clk 0:00:13]}  Kf8 {[%clk 0:00:07]} 53. Rd5 {[%clk 0:00:12]}  Ke7 {[%clk 0:00:06]} 54. Rxd6 {[%clk 0:00:11]}  Kxd6 {[%clk 0:00:07]} 55. f4 {[%clk 0:00:11]}  Bb4 {[%clk 0:00:05]} 56. Rxh6+ {[%clk 0:00:11]}  Kc7 {[%clk 0:00:05]} 57. Rf6 {[%clk 0:00:11]}  Re2+ {[%clk 0:00:05]} 58. Kxd4 {[%clk 0:00:10]}  Rd2 {[%clk 0:00:05]} 59. Rxf7+ {[%clk 0:00:11]}  Kc6 {[%clk 0:00:06]} 60. Rf6+ {[%clk 0:00:11]}  Kb7 {[%clk 0:00:06]} 61. Re6 {[%clk 0:00:11]}  Ba3 {[%clk 0:00:06]} 62. f6 {[%clk 0:00:12]}  Bb2+ {[%clk 0:00:06]} 63. Ke3 {[%clk 0:00:12]} 1-0


[Site "https://www.chess.com"]

[Event "Titled Tuesday Blitz July 27 2021"]
[White "Shuvalov, Evgenij"]
[Black "Quintiliano Pinto, Renato R."]
[WhiteFideId "4187237"]
[BlackFideId "2117568"]
[WhiteElo "2163"]
[BlackElo "2439"]
[Result "0-1"]
[Round "11"]
[TimeControl "180+1"]
[Date "2021.07.27"]
[WhiteClock "0:00:01"]
[BlackClock "0:00:08"]

1. Nf3 {[%clk 0:02:56]}  d5 {[%clk 0:02:57]} 2. c4 {[%clk 0:02:55]}  e6 {[%clk 0:02:56]} 3. g3 {[%clk 0:02:56]}  Nf6 {[%clk 0:02:56]} 4. Bg2 {[%clk 0:02:56]}  Be7 {[%clk 0:02:56]} 5. O-O {[%clk 0:02:56]}  O-O {[%clk 0:02:56]} 6. b3 {[%clk 0:02:57]}  c5 {[%clk 0:02:56]} 7. e3 {[%clk 0:02:56]}  Nc6 {[%clk 0:02:56]} 8. Bb2 {[%clk 0:02:56]}  b6 {[%clk 0:02:56]} 9. Nc3 {[%clk 0:02:55]}  dxc4 {[%clk 0:02:55]} 10. bxc4 {[%clk 0:02:55]}  Bb7 {[%clk 0:02:55]} 11. d3 {[%clk 0:02:52]}  a6 {[%clk 0:02:55]} 12. Rb1 {[%clk 0:02:51]}  Qc7 {[%clk 0:02:54]} 13. Ba1 {[%clk 0:02:48]}  Rab8 {[%clk 0:02:53]} 14. Qe2 {[%clk 0:02:47]}  Rfd8 {[%clk 0:02:53]} 15. a3 {[%clk 0:02:40]}  Na7 {[%clk 0:02:50]} 16. Rfd1 {[%clk 0:02:33]}  b5 {[%clk 0:02:42]} 17. e4 {[%clk 0:01:56]}  Bc6 {[%clk 0:02:30]} 18. Qc2 {[%clk 0:01:42]}  h6 {[%clk 0:02:12]} 19. Ne2 {[%clk 0:01:31]}  Rb7 {[%clk 0:01:54]} 20. Be5 {[%clk 0:01:29]}  Qc8 {[%clk 0:01:50]} 21. Bc3 {[%clk 0:01:22]}  bxc4 {[%clk 0:01:44]} 22. Ne5 {[%clk 0:01:16]}  cxd3 {[%clk 0:01:38]} 23. Rxd3 {[%clk 0:01:16]}  Rxd3 {[%clk 0:01:22]} 24. Qxd3 {[%clk 0:01:15]}  Rxb1+ {[%clk 0:01:06]} 25. Qxb1 {[%clk 0:01:16]}  Be8 {[%clk 0:01:06]} 26. Nc4 {[%clk 0:01:10]}  Nb5 {[%clk 0:01:04]} 27. Bb2 {[%clk 0:01:10]}  Nd7 {[%clk 0:01:00]} 28. e5 {[%clk 0:01:04]}  Nc7 {[%clk 0:00:52]} 29. Nc3 {[%clk 0:01:00]}  Qb8 {[%clk 0:00:50]} 30. Ne4 {[%clk 0:00:50]}  Nb5 {[%clk 0:00:46]} 31. Qd1 {[%clk 0:00:45]}  Nb6 {[%clk 0:00:43]} 32. Ncd6 {[%clk 0:00:39]}  Nd5 {[%clk 0:00:38]} 33. Nxe8 {[%clk 0:00:26]}  Qxe8 {[%clk 0:00:37]} 34. Nd6 {[%clk 0:00:26]}  Nxd6 {[%clk 0:00:33]} 35. exd6 {[%clk 0:00:27]}  Bxd6 {[%clk 0:00:34]} 36. Bxd5 {[%clk 0:00:26]}  exd5 {[%clk 0:00:35]} 37. Qxd5 {[%clk 0:00:26]}  Bf8 {[%clk 0:00:35]} 38. Kg2 {[%clk 0:00:23]}  Qb5 {[%clk 0:00:33]} 39. Bc3 {[%clk 0:00:20]}  c4 {[%clk 0:00:33]} 40. Qd4 {[%clk 0:00:20]}  Qc6+ {[%clk 0:00:30]} 41. Kg1 {[%clk 0:00:19]}  f6 {[%clk 0:00:31]} 42. h4 {[%clk 0:00:18]}  Bxa3 {[%clk 0:00:29]} 43. h5 {[%clk 0:00:18]}  Bf8 {[%clk 0:00:28]} 44. Qd8 {[%clk 0:00:16]}  Kf7 {[%clk 0:00:24]} 45. Qd2 {[%clk 0:00:11]}  Qd6 {[%clk 0:00:22]} 46. Qc2 {[%clk 0:00:11]}  Qd3 {[%clk 0:00:21]} 47. Qb2 {[%clk 0:00:11]}  Qd1+ {[%clk 0:00:20]} 48. Kg2 {[%clk 0:00:10]}  Qxh5 {[%clk 0:00:19]} 49. Qb7+ {[%clk 0:00:10]}  Kg8 {[%clk 0:00:19]} 50. Qxa6 {[%clk 0:00:09]}  Qd5+ {[%clk 0:00:19]} 51. Kg1 {[%clk 0:00:09]}  h5 {[%clk 0:00:19]} 52. Qc8 {[%clk 0:00:08]}  Kf7 {[%clk 0:00:19]} 53. Qc7+ {[%clk 0:00:07]}  Kg6 {[%clk 0:00:18]} 54. Qc8 {[%clk 0:00:07]}  Qd1+ {[%clk 0:00:11]} 55. Kg2 {[%clk 0:00:06]}  Qd5+ {[%clk 0:00:11]} 56. Kg1 {[%clk 0:00:07]}  Qc5 {[%clk 0:00:09]} 57. Qe8+ {[%clk 0:00:06]}  Kh7 {[%clk 0:00:09]} 58. Qe4+ {[%clk 0:00:05]}  g6 {[%clk 0:00:09]} 59. Qe8 {[%clk 0:00:04]}  Qe7 {[%clk 0:00:07]} 60. Qc6 {[%clk 0:00:03]}  Qf7 {[%clk 0:00:07]} 61. Qxf6 {[%clk 0:00:02]}  Qxf6 {[%clk 0:00:07]} 62. Bxf6 {[%clk 0:00:03]}  Kg8 {[%clk 0:00:07]} 63. Kf1 {[%clk 0:00:02]}  Kf7 {[%clk 0:00:08]} 64. Bd4 {[%clk 0:00:02]}  Bg7 {[%clk 0:00:07]} 65. Be3 {[%clk 0:00:01]}  Ke6 {[%clk 0:00:07]} 66. Ke2 {[%clk 0:00:02]}  Kd5 {[%clk 0:00:08]} 67. f3 {[%clk 0:00:02]}  Bd4 {[%clk 0:00:08]} 68. Bf4 {[%clk 0:00:01]}  Be5 {[%clk 0:00:08]} 0-1


[Site "https://www.chess.com"]

[Event "Titled Tuesday Blitz July 27 2021"]
[White "Shvedova, Alexandra"]
[Black "Gontcharov, Vladislav"]
[WhiteFideId "54154782"]
[BlackFideId "4123492"]
[WhiteElo "1887"]
[BlackElo "2503"]
[Result "1-0"]
[Round "11"]
[TimeControl "180+1"]
[Date "2021.07.27"]
[WhiteClock "0:00:13"]
[BlackClock "0:00:18"]

1. e4 {[%clk 0:03:00]}  e6 {[%clk 0:02:59]} 2. d4 {[%clk 0:03:00]}  d5 {[%clk 0:03:00]} 3. Nd2 {[%clk 0:03:01]}  Be7 {[%clk 0:02:59]} 4. Ngf3 {[%clk 0:02:59]}  Nf6 {[%clk 0:02:59]} 5. e5 {[%clk 0:02:59]}  Nfd7 {[%clk 0:03:00]} 6. c3 {[%clk 0:02:57]}  c5 {[%clk 0:03:00]} 7. Bb5 {[%clk 0:02:51]}  Nc6 {[%clk 0:02:59]} 8. O-O {[%clk 0:02:50]}  a6 {[%clk 0:02:59]} 9. Bxc6 {[%clk 0:02:46]}  bxc6 {[%clk 0:02:58]} 10. dxc5 {[%clk 0:02:43]}  Nxc5 {[%clk 0:02:57]} 11. b4 {[%clk 0:02:41]}  Nd7 {[%clk 0:02:55]} 12. Nb3 {[%clk 0:02:41]}  Qc7 {[%clk 0:02:52]} 13. Re1 {[%clk 0:02:39]}  c5 {[%clk 0:02:51]} 14. Bf4 {[%clk 0:02:24]}  cxb4 {[%clk 0:02:44]} 15. cxb4 {[%clk 0:02:23]}  Bxb4 {[%clk 0:02:44]} 16. Re2 {[%clk 0:02:22]}  O-O {[%clk 0:02:35]} 17. Rc1 {[%clk 0:02:21]}  Qb6 {[%clk 0:02:28]} 18. Be3 {[%clk 0:02:19]}  Qb8 {[%clk 0:02:24]} 19. Rec2 {[%clk 0:02:18]}  Nxe5 {[%clk 0:02:18]} 20. Nxe5 {[%clk 0:02:08]}  Qxe5 {[%clk 0:02:17]} 21. Bd4 {[%clk 0:02:07]}  Qf5 {[%clk 0:02:11]} 22. Nc5 {[%clk 0:01:56]}  e5 {[%clk 0:02:04]} 23. Bb2 {[%clk 0:01:50]}  d4 {[%clk 0:01:54]} 24. a3 {[%clk 0:01:32]}  Bxc5 {[%clk 0:01:37]} 25. Rxc5 {[%clk 0:01:31]}  Bb7 {[%clk 0:01:34]} 26. f3 {[%clk 0:01:13]}  Rad8 {[%clk 0:01:20]} 27. Qb3 {[%clk 0:01:02]}  Ba8 {[%clk 0:01:14]} 28. Re1 {[%clk 0:00:59]}  Rfe8 {[%clk 0:01:14]} 29. Qc4 {[%clk 0:00:51]}  Qf6 {[%clk 0:00:59]} 30. Rc7 {[%clk 0:00:49]}  Bd5 {[%clk 0:00:47]} 31. Qc5 {[%clk 0:00:43]}  h5 {[%clk 0:00:39]} 32. Bxd4 {[%clk 0:00:38]}  exd4 {[%clk 0:00:22]} 33. Rxe8+ {[%clk 0:00:39]}  Rxe8 {[%clk 0:00:20]} 34. Qxd5 {[%clk 0:00:38]}  d3 {[%clk 0:00:20]} 35. Rc1 {[%clk 0:00:23]}  Qb6+ {[%clk 0:00:19]} 36. Kh1 {[%clk 0:00:23]}  Qe3 {[%clk 0:00:19]} 37. Rg1 {[%clk 0:00:19]}  d2 {[%clk 0:00:19]} 38. h3 {[%clk 0:00:14]}  Qxg1+ {[%clk 0:00:19]} 39. Kxg1 {[%clk 0:00:14]}  Re1+ {[%clk 0:00:20]} 40. Kh2 {[%clk 0:00:13]}  d1=Q {[%clk 0:00:19]} 41. Qa8+ {[%clk 0:00:13]}  Kh7 {[%clk 0:00:19]} 42. Qxa6 {[%clk 0:00:14]}  Qd6+ {[%clk 0:00:18]} 43. Qxd6 {[%clk 0:00:13]} 1-0


[Site "https://www.chess.com"]

[Event "Titled Tuesday Blitz July 27 2021"]
[White "Siva Mahadevan"]
[Black "Terry, Renato"]
[WhiteFideId "25043153"]
[BlackFideId "3803457"]
[WhiteElo "2203"]
[BlackElo "2581"]
[Result "1-0"]
[Round "11"]
[TimeControl "180+1"]
[Date "2021.07.27"]
[WhiteClock "0:00:07"]
[BlackClock "0:00:02"]

1. e4 {[%clk 0:03:00]}  e6 {[%clk 0:03:00]} 2. d4 {[%clk 0:03:01]}  d5 {[%clk 0:03:01]} 3. Nd2 {[%clk 0:03:01]}  Be7 {[%clk 0:02:59]} 4. Ngf3 {[%clk 0:03:01]}  Nf6 {[%clk 0:03:00]} 5. e5 {[%clk 0:03:01]}  Nfd7 {[%clk 0:03:00]} 6. Bd3 {[%clk 0:03:02]}  c5 {[%clk 0:03:00]} 7. c3 {[%clk 0:03:03]}  Nc6 {[%clk 0:03:00]} 8. O-O {[%clk 0:03:03]}  a5 {[%clk 0:03:01]} 9. a4 {[%clk 0:02:59]}  Qb6 {[%clk 0:02:59]} 10. Re1 {[%clk 0:02:57]}  h6 {[%clk 0:02:44]} 11. c4 {[%clk 0:02:30]}  Nb4 {[%clk 0:02:35]} 12. Bf1 {[%clk 0:02:28]}  O-O {[%clk 0:02:23]} 13. cxd5 {[%clk 0:02:00]}  exd5 {[%clk 0:02:22]} 14. Nb1 {[%clk 0:01:59]}  cxd4 {[%clk 0:02:17]} 15. Bf4 {[%clk 0:01:21]}  Bc5 {[%clk 0:02:12]} 16. Nbd2 {[%clk 0:01:17]}  d3 {[%clk 0:02:10]} 17. Bg3 {[%clk 0:01:17]}  Nc2 {[%clk 0:01:51]} 18. Bxd3 {[%clk 0:01:16]}  Nxa1 {[%clk 0:01:51]} 19. Qxa1 {[%clk 0:01:16]}  Re8 {[%clk 0:01:47]} 20. Qd1 {[%clk 0:01:12]}  Nf8 {[%clk 0:01:44]} 21. Bb1 {[%clk 0:01:12]}  Qxb2 {[%clk 0:01:39]} 22. Nb3 {[%clk 0:01:12]}  Bb6 {[%clk 0:01:30]} 23. Nbd4 {[%clk 0:01:02]}  Bg4 {[%clk 0:01:28]} 24. Qd3 {[%clk 0:00:55]}  Rac8 {[%clk 0:01:18]} 25. h3 {[%clk 0:00:54]}  Rc3 {[%clk 0:01:15]} 26. Qf1 {[%clk 0:00:39]}  Bxd4 {[%clk 0:01:02]} 27. hxg4 {[%clk 0:00:33]}  Bc5 {[%clk 0:00:58]} 28. g5 {[%clk 0:00:33]}  h5 {[%clk 0:00:57]} 29. Bf5 {[%clk 0:00:22]}  Ba3 {[%clk 0:00:49]} 30. Bf4 {[%clk 0:00:17]}  Rc4 {[%clk 0:00:46]} 31. g3 {[%clk 0:00:16]}  Rxa4 {[%clk 0:00:41]} 32. Rb1 {[%clk 0:00:13]}  Qc3 {[%clk 0:00:38]} 33. Kg2 {[%clk 0:00:13]}  Rb4 {[%clk 0:00:38]} 34. Rd1 {[%clk 0:00:13]}  d4 {[%clk 0:00:35]} 35. Bd2 {[%clk 0:00:12]}  Qc6 {[%clk 0:00:31]} 36. Bxb4 {[%clk 0:00:10]}  Bxb4 {[%clk 0:00:32]} 37. Qe2 {[%clk 0:00:08]}  Bc3 {[%clk 0:00:32]} 38. Be4 {[%clk 0:00:08]}  Qc5 {[%clk 0:00:20]} 39. Bxb7 {[%clk 0:00:08]}  Re7 {[%clk 0:00:19]} 40. Be4 {[%clk 0:00:07]}  a4 {[%clk 0:00:19]} 41. Qa2 {[%clk 0:00:08]}  a3 {[%clk 0:00:19]} 42. g6 {[%clk 0:00:08]}  Ne6 {[%clk 0:00:04]} 43. gxf7+ {[%clk 0:00:08]}  Kf8 {[%clk 0:00:05]} 44. Rh1 {[%clk 0:00:07]}  g6 {[%clk 0:00:02]} 45. Bf5 {[%clk 0:00:08]}  gxf5 {[%clk 0:00:02]} 46. Rxh5 {[%clk 0:00:09]}  Kxf7 {[%clk 0:00:01]} 47. Rxf5+ {[%clk 0:00:09]}  Ke8 {[%clk 0:00:01]} 48. Rf6 {[%clk 0:00:09]}  Kd7 {[%clk 0:00:01]} 49. Qc2 {[%clk 0:00:07]}  Nc7 {[%clk 0:00:01]} 50. Qa4+ {[%clk 0:00:07]}  Kc8 {[%clk 0:00:01]} 51. Rf8+ {[%clk 0:00:06]}  Kb7 {[%clk 0:00:02]} 52. Qb3+ {[%clk 0:00:07]}  Kc6 {[%clk 0:00:02]} 53. Qa4+ {[%clk 0:00:07]} 1-0


[Site "https://www.chess.com"]

[Event "Titled Tuesday Blitz July 27 2021"]
[White "Swicarz, Maciej"]
[Black "Chitlange Sakshi"]
[WhiteFideId "1113585"]
[BlackFideId "35002899"]
[WhiteElo "2199"]
[BlackElo "1787"]
[Result "1-0"]
[Round "11"]
[TimeControl "180+1"]
[Date "2021.07.27"]
[WhiteClock "0:01:42"]
[BlackClock "0:00:40"]

1. c4 {[%clk 0:03:00]}  e6 {[%clk 0:02:57]} 2. Nc3 {[%clk 0:02:59]}  d5 {[%clk 0:02:57]} 3. d4 {[%clk 0:02:59]}  a6 {[%clk 0:02:57]} 4. cxd5 {[%clk 0:02:55]}  exd5 {[%clk 0:02:58]} 5. Nf3 {[%clk 0:02:55]}  Nf6 {[%clk 0:02:58]} 6. Bg5 {[%clk 0:02:54]}  Be7 {[%clk 0:02:58]} 7. e3 {[%clk 0:02:55]}  O-O {[%clk 0:02:58]} 8. Bd3 {[%clk 0:02:55]}  h6 {[%clk 0:02:58]} 9. Bxf6 {[%clk 0:02:54]}  Bxf6 {[%clk 0:02:59]} 10. O-O {[%clk 0:02:52]}  c6 {[%clk 0:02:55]} 11. b4 {[%clk 0:02:52]}  Bg4 {[%clk 0:02:45]} 12. h3 {[%clk 0:02:51]}  Bh5 {[%clk 0:02:36]} 13. a4 {[%clk 0:02:50]}  Nd7 {[%clk 0:02:24]} 14. b5 {[%clk 0:02:49]}  axb5 {[%clk 0:02:23]} 15. axb5 {[%clk 0:02:50]}  Rxa1 {[%clk 0:02:23]} 16. Qxa1 {[%clk 0:02:50]}  Bxf3 {[%clk 0:02:22]} 17. gxf3 {[%clk 0:02:51]}  Nb6 {[%clk 0:02:15]} 18. Qa7 {[%clk 0:02:45]}  c5 {[%clk 0:01:55]} 19. dxc5 {[%clk 0:02:41]}  Bxc3 {[%clk 0:01:38]} 20. cxb6 {[%clk 0:02:39]}  Qg5+ {[%clk 0:01:31]} 21. Kh2 {[%clk 0:02:33]}  Be5+ {[%clk 0:01:24]} 22. f4 {[%clk 0:02:33]}  Bxf4+ {[%clk 0:01:24]} 23. exf4 {[%clk 0:02:33]}  Qxf4+ {[%clk 0:01:25]} 24. Kg2 {[%clk 0:02:33]}  Qg5+ {[%clk 0:01:19]} 25. Kf3 {[%clk 0:02:30]}  Qf6+ {[%clk 0:01:14]} 26. Ke3 {[%clk 0:02:14]}  Re8+ {[%clk 0:01:04]} 27. Kd2 {[%clk 0:02:14]}  Qb2+ {[%clk 0:01:05]} 28. Bc2 {[%clk 0:02:14]}  Qxb5 {[%clk 0:00:58]} 29. Rb1 {[%clk 0:02:08]}  Qc5 {[%clk 0:00:51]} 30. Qa4 {[%clk 0:01:53]}  Qxf2+ {[%clk 0:00:49]} 31. Kc1 {[%clk 0:01:49]}  Re1+ {[%clk 0:00:49]} 32. Kb2 {[%clk 0:01:49]}  Qxb6+ {[%clk 0:00:47]} 33. Ka2 {[%clk 0:01:47]}  Rxb1 {[%clk 0:00:43]} 34. Bxb1 {[%clk 0:01:48]}  Qf2+ {[%clk 0:00:43]} 35. Ka1 {[%clk 0:01:45]}  Qe3 {[%clk 0:00:40]} 36. Qa8+ {[%clk 0:01:42]} 1-0


[Site "https://www.chess.com"]

[Event "Titled Tuesday Blitz July 27 2021"]
[White "Tokman, Ariel"]
[Black "Eggleston, Thomas A"]
[WhiteFideId "117420"]
[BlackFideId "412139"]
[WhiteElo "2345"]
[BlackElo "2174"]
[Result "1-0"]
[Round "11"]
[TimeControl "180+1"]
[Date "2021.07.27"]
[WhiteClock "0:02:17"]
[BlackClock "0:01:58"]

1. c4 {[%clk 0:03:00]}  e6 {[%clk 0:02:57]} 2. Nc3 {[%clk 0:03:01]}  d5 {[%clk 0:02:57]} 3. g3 {[%clk 0:03:02]}  dxc4 {[%clk 0:02:56]} 4. Nf3 {[%clk 0:03:03]}  Nf6 {[%clk 0:02:57]} 5. Qa4+ {[%clk 0:03:01]}  Nbd7 {[%clk 0:02:56]} 6. Qxc4 {[%clk 0:03:02]}  a6 {[%clk 0:02:55]} 7. Bg2 {[%clk 0:03:01]}  c5 {[%clk 0:02:55]} 8. d3 {[%clk 0:03:00]}  b5 {[%clk 0:02:52]} 9. Qb3 {[%clk 0:03:00]}  Bb7 {[%clk 0:02:52]} 10. O-O {[%clk 0:03:00]}  Be7 {[%clk 0:02:46]} 11. a4 {[%clk 0:02:59]}  b4 {[%clk 0:02:46]} 12. Nb1 {[%clk 0:02:57]}  Bd5 {[%clk 0:02:45]} 13. Qc2 {[%clk 0:02:57]}  Rc8 {[%clk 0:02:28]} 14. Nbd2 {[%clk 0:02:57]}  a5 {[%clk 0:02:26]} 15. Nc4 {[%clk 0:02:57]}  h6 {[%clk 0:02:19]} 16. b3 {[%clk 0:02:56]}  e5 {[%clk 0:02:17]} 17. Nfxe5 {[%clk 0:02:42]}  Bxg2 {[%clk 0:02:11]} 18. Kxg2 {[%clk 0:02:41]}  Nxe5 {[%clk 0:02:11]} 19. Nxe5 {[%clk 0:02:42]}  Qd5+ {[%clk 0:02:11]} 20. Nf3 {[%clk 0:02:41]}  h5 {[%clk 0:02:10]} 21. e4 {[%clk 0:02:40]}  Qb7 {[%clk 0:02:09]} 22. Bb2 {[%clk 0:02:39]}  h4 {[%clk 0:02:08]} 23. Nxh4 {[%clk 0:02:37]}  g5 {[%clk 0:02:07]} 24. Nf5 {[%clk 0:02:32]}  g4 {[%clk 0:02:05]} 25. Bxf6 {[%clk 0:02:28]}  Qc6 {[%clk 0:02:00]} 26. Bxe7 {[%clk 0:02:21]}  Qg6 {[%clk 0:01:58]} 27. Bh4 {[%clk 0:02:17]} 1-0


[Site "https://www.chess.com"]